{"text_format":"1","workbook":"xlsx","n_sheets":1,"sheets":["TER"],"not_rendered":{"charts":0,"images":8,"macros":1,"external_links":0,"defined_names":0,"comments":0,"pivot_tables":0},"unopened":[],"bounds":{"document_bytes":16777216,"sheet_cells":100000,"rows_first":2000,"rows_last":500,"rows_between":2000,"halvings":0,"cell_chars":16384,"cell_head_chars":4096},"cells_cut":0,"cells_raw":0,"read":"whole","date_system":"1900"}

{"sheet":"TER","index":0,"n_rows":87,"n_cols":16,"rows_kept":87,"cut":false,"hidden":false,"merged":[[2,0,2,2]]}
["Valitse kaikki tuvallisuuslupaan liittyvät toiminnat ja lisää toiminnoissa käytettävien laitteiden lukumäärä kyseisen vuoden tammikuun 1. päivän tilanteen perusteella"]
["Laitteiden maksuluokat perustuvat toiminnanharjoittajan turvallisuusarviossaan tekemään laitteiden altistusten luokitteluun "]
["Huom! Laskurin käyttö vaatii Excelin makrojen ottamisen käyttöön"]
[]
["VUOSIMAKSUN SUMMA"]
[{"$f":"SUBTOTAL(109,E9:E63)","v":0}]
[]
[false,null,null,null,null,null,null,null,null,"Säteilylähteen maksuluokka","Säteilylähteet"]
[null,null,null,"Toimintakohtainen perusmaksu",0]
[null,"Syötä lukumäärä","Laite","Säteilylähdekohtainen lisämaksu"]
[null,null,"Intraoraaliröntgenlaite",40,{"$f":"IF(B11=\"\",\"\",B11*D11)","v":""}]
[null,null,"Panoraamatomografialaite",80,{"$f":"IF(B12=\"\",\"\",B12*D12)","v":""}]
[null,null,"Maksuluokan C röntgenlaite (potilaalle aiheutuva efektiivinen annos on ≤ 0,1 mSv) (Huom! KKTT-kuvantamisessa lisäksi toimintakohtainen vuosimaksu 180 €)",140,{"$f":"IF(B13=\"\",\"\",180+B13*D13)","v":""}]
[null,null,"Maksuluokan D röntgenlaite (potilaalle aiheutuva efektiivinen annos on 0,1-100 mSv eikä determinististä haittaa) (Huom! KKTT-kuvantamisessa lisäksi toimintakohtainen vuosimaksu 180 €)",390,{"$f":"IF(B14=\"\",\"\",160+B14*D14)","v":""}]
[false,null,null,null,null,null,null,null,null,"F","9 500 €"]
[null,null,null,"Toimintakohtainen perusmaksu",0]
[null,"Syötä lukumäärä","Laite","Säteilylähdekohtainen lisämaksu"]
[null,null,"Hammasröntgenkuvauslaite eläinlääketieteessä",40,{"$f":"IF(B18=\"\",\"\",B18*D18)","v":""}]
[null,null,"Eläinlääketieteen röntgenkuvauslaite (muu kuin hammasröntgenkuvauslaite) (Huom! Muille kuin hammasröntgenkuvauslaitteille lisäksi toimintakohtainen vuosimaksu 180€)",140,{"$f":"IF(B19=\"\",\"\",180+B19*D19)","v":""}]
[false,null,null,null,null,null,null,null,null,"Toiminnan maksuluokka","Toimintakohtainen perusmaksu",null,null,null,"Säteilylähteen maksuluokka","Säteilylähdekohtainen lisämaksu"]
[null,null,null,"Toimintakohtainen perusmaksu",180]
[null,"Syötä lukumäärä","Laite","Säteilylähdekohtainen lisämaksu",null,null,null,null,null,null,null,null,null,null,"A",35]
[null,null,"Intraoraaliröntgenlaite",40,{"$f":"IF(B23=\"\",\"\",B23*D23)","v":""}]
[null,null,"Panoraamatomografialaite",80,""]
[null,null,"Maksuluokan C röntgenlaite (potilaalle aiheutuva efektiivinen annos on ≤ 0,1 mSv)",140,{"$f":"IF(B25=\"\",\"\",B25*D25)","v":""}]
[null,null,"Maksuluokan D röntgenlaite (potilaalle aiheutuva efektiivinen annos on 0,1-100 mSv eikä determinististä haittaa)",390,""]
[null,null,"Maksuluokan F röntgenlaite (potilaalle aiheutuva efektiivinen annos on > 100 mSv tai paikallinen tai elimen absorboitunut annos on > 10 Gy:tä)",840,""]
[false,null,null,null,null,null,null,null,null,"C","1 000 €"]
[null,null,null,"Toimintakohtainen perusmaksu",1680]
[null,"Syötä laboratorioiden lukumäärä","Laite","Säteilylähdekohtainen lisämaksu"]
[null,null,"Avolähteet laboratoriossa, luokka 3 (kun kerralla käsiteltävä radioaktiivisen aineen määrä on pienempi kuin k∙10∙vapaaraja)",120,{"$f":"IF(B31=\"\",\"\",B31*D31)","v":""},null,null,null,null,"D","1 500 €"]
[null,null,"Avolähteet laboratoriossa, luokka 2 (kun kerralla käsiteltävä radioaktiivisen aineen määrä on suurempi tai yhtä suuri kuin k∙10∙ vapaaraja mutta pienempi kuin k∙10 000∙vapaaraja)",370,{"$f":"IF(B32=\"\",\"\",B32*D32)","v":""}]
[null,null,"Avolähteet laboratoriossa, luokka 1 (kun kerralla käsiteltävä radioaktiivisen aineen määrä on suurempi tai yhtä suuri kuin k∙10 000∙ vapaaraja)",840,{"$f":"IF(B33=\"\",\"\",B33*D33)","v":""}]
[false]
[null,null,null,"Toimintakohtainen perusmaksu",4130]
[null,"Syötä laboratorioiden tai laitteiden lukumäärä","Laite","Säteilylähdekohtainen lisämaksu"]
[null,null,"Avolähteet laboratoriossa, luokka 3 (kun kerralla käsiteltävä radioaktiivisen aineen määrä on pienempi kuin k∙10∙vapaaraja)",140,{"$f":"IF(B37=\"\",\"\",B37*D37)","v":""}]
[null,null,"Avolähteet laboratoriossa, luokka 2 (kun kerralla käsiteltävä radioaktiivisen aineen määrä on suurempi tai yhtä suuri kuin k∙10∙ vapaaraja mutta pienempi kuin k∙10 000∙vapaaraja)",390,{"$f":"IF(B38=\"\",\"\",B38*D38)","v":""}]
[null,null,"Avolähteet laboratoriossa, luokka 1 (kun kerralla käsiteltävä radioaktiivisen aineen määrä on suurempi tai yhtä suuri kuin k∙10 000∙ vapaaraja)",840,""]
[null,null,"Umpilähde (muu kuin korkea-aktiivinen umpilähde). Maksu peritään enintään sadasta lähteestä.",80,{"$f":"IF(B40=\"\",\"\",IF(B40>100,100*D40,B40*D40))","v":""}]
[null,null,"Korkea-aktiivinen umpilähde",560,""]
[null,null,"Maksuluokan C röntgenlaite (potilaalle aiheutuva efektiivinen annos on ≤ 0,1 mSv)",140,""]
[null,null,"Maksuluokan D röntgenlaite (potilaalle aiheutuva efektiivinen annos on 0,1-100 mSv eikä determinististä haittaa)",390,""]
[null,null,"Maksuluokan F röntgenlaite (potilaalle aiheutuva efektiivinen annos on > 100 mSv tai paikallinen tai elimen absorboitunut annos on > 10 Gy:tä)",840,""]
[]
[null,null,null,"Toimintakohtainen perusmaksu",10040]
[null,"Syötä lukumäärä","Laite","Säteilylähdekohtainen lisämaksu"]
[null,null,"Sädehoidon röntgenpintahoitolaite",1120,{"$f":"IF(B48=\"\",\"\",B48*D48)","v":""}]
[null,null,"Sädehoidon yksienerginen kiihdytin, röntgensyvähoitolaite tai jälkilataushoitolaite",3350,{"$f":"IF(B49=\"\",\"\",B49*D49)","v":""}]
[null,null,"Sädehoidon monienerginen kiihdytin",6030,""]
[null,null,"Maksuluokan C röntgenlaite (potilaalle aiheutuva efektiivinen annos on ≤ 0,1 mSv)",140,""]
[null,null,"Maksuluokan D röntgenlaite (potilaalle aiheutuva efektiivinen annos on 0,1-100 mSv eikä determinististä haittaa)",390,""]
[null,null,"Maksuluokan F röntgenlaite (potilaalle aiheutuva efektiivinen annos on > 100 mSv tai paikallinen tai elimen absorboitunut annos on > 10 Gy:tä)",840,""]
[null,null,"Umpilähde (muu kuin korkea-aktiivinen umpilähde). Maksu peritään enintään sadasta lähteestä.",80,{"$f":"IF(B54=\"\",\"\",IF(B54>100,100*D54,B54*D54))","v":""}]
[null,null,"Korkea-aktiivinen umpilähde",560,"",null,null,null,null,"A",160,null,null,null,"F",750]
[]
[null,null,null,"Toimintakohtainen perusmaksu",620,null,null,null,null,null,null,null,null,null,"G","1 000 €"]
[null,null,"Säteilylähteiden kaupassa vain toimintakohtainen perusmaksu",null,null,null,null,null,null,null,null,null,null,null,"H","3 000 €"]
[null,null,null,null,null,null,null,null,null,"B",400]
[false]
[null,null,null,"Toimintakohtainen perusmaksu",620]
[null,null,"Säteilylähteiden asennus, huolto- ja korjaustoimminassa sekä säteilylaitteiden valmistuksessa vain toimintakohtainen perusmaksu"]
[]
[]
[]
[null,null,null,"VUOSIMAKSUN SUMMA"]
[null,null,null,{"$f":"SUBTOTAL(109,E9:E63)","v":0}]
[null,null,null,null,null,null,null,null,"A",null,"Hammasröntgenlaite, jolla kuvataan suun sisään asetettavalle kuvailmaisimelle",35]
[null,null,null,null,null,null,null,null,null,null,"Hammasröntgenkuvauslaite eläinlääketieteessä",35]
[null,null,null,null,null,null,null,null,"B",null,"Umpilähde (muu kuin korkea-aktiivinen umpilähde). Maksu peritään enintään sadasta lähteestä",70]
[null,null,null,null,null,null,null,null,null,null,"Röntgenlaite (ei koske terveydenhuollon, eläinlääketieteen ja teollisuuskuvauksen röntgenlaitetta eikä röntgenlaitetta, johon liittyy erikseen rakennettavia suojarakennelmia)",70]
[null,null,null,null,null,null,null,null,null,null,"Hammasröntgentoiminnassa käytettävä panoraamatomografialaite",70]
[null,null,null,null,null,null,null,null,"C",null,"Teollisuuskuvauksessa käytettävä röntgenlaite tai röntgenlaite, johon liittyy erikseen rakennettavia suojarakennelmia (ei koske terveydenhuollon tai eläinlääketieteen röntgenlaitetta)",120]
[null,null,null,null,null,null,null,null,null,null,"Eläinlääketieteen röntgenkuvauslaite (muu kuin hammasröntgenkuvauslaite)",120]
[null,null,null,null,null,null,null,null,null,null,"Terveydenhuollon röntgenkuvauslaite (muu kuin hammasröntgentoiminnassa käytettävä panoraamatomografialaite tai hammasröntgenlaite, jolla kuvataan suun sisään asetettavalle kuvailmaisimelle), jonka käytöstä potilaalle aiheutuva efektiivinen annos on pienempi tai yhtä suuri kuin 0,1 mSv eikä determinististä haittaa 1)",120]
[null,null,null,null,null,null,null,null,null,null,"Hiukkaskiihdytin (ei koske terveydenhuollon tai eläinlääketieteen hiukkaskiihdytintä)",120]
[null,null,null,null,null,null,null,null,null,null,"Avolähteet laboratoriossa, kun kerralla käsiteltävä radioaktiivisen aineen määrä on pienempi kuin k∙10∙vapaaraja2)",120]
[null,null,null,null,null,null,null,null,"D",null,"Terveydenhuollon röntgenkuvauslaite (muu kuin hammasröntgentoiminnassa käytettävä panoraamatomografialaite tai hammasröntgenlaite, jolla kuvataan suun sisään asetettavalle kuvailmaisimelle), jonka käytöstä potilaalle aiheutuva efektiivinen annos on suurempi kuin 0,1 mSv, mutta pienempi tai yhtä suuri kuin 100 mSv eikä determinististä haittaa1) ",370]
[null,null,null,null,null,null,null,null,null,null,"Avolähteet laboratoriossa, kun kerralla käsiteltävä radioaktiivisen aineen määrä on suurempi tai yhtä suuri kuin k∙10∙ vapaaraja mutta pienempi kuin k∙10 000∙vapaaraja 2)",370]
[null,null,null,null,null,null,null,null,null,null,"Avolähteet merkkiainekokeissa muualla kuin laboratoriossa",370]
[null,null,null,null,null,null,null,null,"E",null,"Korkea-aktiivinen umpilähde",500]
[null,null,null,null,null,null,null,null,null,null,"Eläinlääketieteen sädehoitolaite",500]
[null,null,null,null,null,null,null,null,"F",null,"Terveydenhuollon röntgenkuvauslaite (muu kuin hammasröntgentoiminnassa käytettävä panoraamatomografialaite tai hammasröntgenlaite, jolla kuvataan suun sisään asetettavalle kuvailmaisimelle), jonka käytöstä potilaalle aiheutuva efektiivinen annos on suurempi kuin 100 mSv tai paikallinen tai elimen absorboitunut annos on suurempi kuin 10 Gy:tä1) ",750]
[null,null,null,null,null,null,null,null,null,null,"Avolähteet laboratoriossa, kun kerralla käsiteltävä radioaktiivisen aineen määrä on suurempi tai yhtä suuri kuin k∙10 000∙ vapaaraja 2)",750]
[null,null,null,null,null,null,null,null,"G",null,"Sädehoidon röntgenpintahoitolaite",1000]
[null,null,null,null,null,null,null,null,"H",null,"Sädehoidon yksienerginen kiihdytin, röntgensyvähoitolaite tai jälkilataushoitolaite",3000]
[null,null,null,null,null,null,null,null,"I",null,"Sädehoidon monienerginen kiihdytin",5400]